bitfinex-derivatives/quotes_SOLF0:USTF0_20241025
["timestamp","ask_amount","ask_price","bid_price","bid_amount"]
[1729886232943,2.9738,168.38,168.35,2.9743]
[1729886233139,12.86063615,168.43,168.36,5.78]
[1729886234534,2.9737,168.39,168.36,5.78]
[1729886234739,12.86063615,168.45,168.36,5.78]
[1729886234947,12.86063615,168.45,168.37,4.2355]
[1729886235134,2.9733,168.41,168.37,4.2355]
[1729886235335,12.86063615,168.45,168.37,4.2355]
[1729886235744,2.973,168.43,168.39,2.9735]
[1729886236043,13.14571538,168.54,168.37,14.12233615]
[1729886236044,343.0,168.65,168.42,12.86063615]
[1729886236244,237.9066,168.66,168.44,12.86063615]
[1729886236245,12.86063615,168.55,168.44,12.86063615]
[1729886236447,1.0921,168.58,168.46,12.86063615]
[1729886236448,0.97830133,168.54,168.46,12.86063615]
[1729886236748,2.9712,168.53,168.47,2.972]
[1729886237150,12.86063615,168.57,168.46,12.86063615]
[1729886237447,12.86063615,168.57,168.49,12.86063615]
[1729886237743,12.86063615,168.57,168.5,5.78]
[1729886238048,2.9706,168.56,168.51,2.9714]
[1729886238240,2.9706,168.56,168.5,7.0302]
[1729886238647,15.82188496,168.6,168.5,7.0302]
[1729886238846,2.9708,168.55,168.5,10.0018]
[1729886239046,1.0921,168.64,168.5,7.0302]
[1729886239341,2.9703,168.58,168.51,12.86063615]
[1729886240152,2.9703,168.58,168.53,15.83153615]
[1729886240347,12.86063615,168.62,168.54,1.2969]
[1729886240348,2.9702,168.59,168.54,1.2969]
[1729886240546,12.86063615,168.62,168.55,5.78]
[1729886240954,2.97,168.59,168.55,5.78]
[1729886241556,2.97,168.6,168.55,5.78]
[1729886242354,2.97,168.6,168.56,2.9705]
[1729886243357,12.86063615,168.64,168.55,5.78]
[1729886243358,2.9702,168.59,168.55,5.78]
[1729886244349,2.9702,168.59,168.55,8.7507]
[1729886244552,12.86063615,168.62,168.54,1.2969]
[1729886244857,12.86063615,168.6,168.55,5.78]
[1729886245253,2.9706,168.56,168.55,5.78]
[1729886247455,12.86063615,168.6,168.55,5.78]
[1729886248654,2.9705,168.57,168.55,5.78]
[1729886249346,12.86063615,168.64,168.55,5.78]
[1729886249546,2.9699,168.6,168.55,5.78]
[1729886251252,2.9699,168.6,168.56,2.9705]
[1729886252158,2.9702,168.59,168.55,8.7507]
[1729886253154,2.9702,168.59,168.55,5.78]
[1729886253555,12.86063615,168.64,168.55,5.78]
[1729886253955,2.97,168.6,168.56,2.9705]
[1729886254258,12.86063615,168.64,168.55,5.78]
[1729886254655,2.90090884,168.65,168.55,5.78]
[1729886254857,12.86063615,168.64,168.55,5.78]
[1729886255066,2.97,168.6,168.56,2.9705]
[1729886255964,12.86063615,168.64,168.56,2.9705]
[1729886256160,12.86063615,168.62,168.55,5.78]
[1729886256659,2.9701,168.59,168.55,5.78]
[1729886257163,12.86063615,168.6,168.55,5.78]
[1729886257857,2.9705,168.57,168.55,5.78]
[1729886258260,12.86063615,168.6,168.55,5.78]
[1729886259469,2.9705,168.57,168.55,5.78]
[1729886261768,2.9706,168.56,168.55,5.78]
[1729886262469,12.86063615,168.6,168.51,1.2895]
[1729886262669,2.971,168.54,168.52,5.76]
[1729886263071,12.86063615,168.58,168.52,5.76]
[1729886263273,2.9711,168.53,168.52,5.76]
[1729886265267,1.0874,168.61,168.52,5.76]
[1729886265665,15.90448058,168.62,168.52,5.76]
[1729886265869,2.97,168.59,168.52,5.76]
[1729886266074,2.97,168.59,168.52,18.62063615]
[1729886266278,15.90448058,168.62,168.52,19.86553615]
[1729886266576,2.9703,168.58,168.53,2.971]
[1729886266771,15.90448058,168.62,168.52,19.86553615]
[1729886267170,12.86063615,168.62,168.54,2.9709]
[1729886267372,12.86063615,168.64,168.52,19.86553615]
[1729886267574,12.86063615,168.64,168.55,12.86063615]
[1729886267763,12.86063615,168.64,168.57,2.9704]
[1729886267764,2.9698,168.61,168.57,2.9704]
[1729886267967,2.9698,168.61,168.58,5.76]
[1729886268363,2.9696,168.62,168.58,5.76]
[1729886269574,12.86063615,168.64,168.58,5.76]
[1729886269575,2.9698,168.61,168.58,5.76]
[1729886272577,4.04538868,168.65,168.58,8.7301]
[1729886273479,4.04538868,168.65,168.58,5.76]
[1729886273480,2.9697,168.61,168.58,5.76]
[1729886275576,2.9693,168.63,168.59,2.97]
[1729886275874,92.45360338,168.7,168.58,5.76]
[1729886275875,87.78020338,168.7,168.6,12.86063615]
[1729886276078,12.86063615,168.72,168.62,12.86063615]
[1729886276279,2.9683,168.69,168.65,2.969]
[1729886276477,12.86063615,168.72,168.65,2.969]
[1729886276878,15.81599407,168.72,168.65,2.969]
[1729886277176,5.76,168.77,168.65,2.9688]
[1729886277177,2.9683,168.69,168.65,2.9688]
[1729886277369,2.9683,168.69,168.63,5.76]
[1729886277370,12.86063615,168.74,168.64,12.86063615]
[1729886277771,2.968,168.71,168.64,12.86063615]
[1729886278578,2.9678,168.72,168.66,12.86063615]
[1729886279480,12.86063615,168.76,168.66,12.86063615]
[1729886279780,1.0866,168.78,168.68,12.86063615]
[1729886279982,1.0866,168.78,168.69,8.7281]
[1729886280679,2.9674,168.74,168.69,8.7281]
[1729886280980,12.86063615,168.75,168.7,5.76]
[1729886281584,12.86063615,168.77,168.7,5.76]
[1729886281986,2.9677,168.73,168.7,5.76]
[1729886282583,2.9677,168.72,168.7,5.76]
[1729886282781,12.86063615,168.77,168.7,8.7281]
[1729886283192,2.9673,168.75,168.7,5.76]
[1729886283389,12.86063615,168.8,168.72,2.9677]
[1729886283583,12.86063615,168.8,168.7,5.76]
[1729886283786,2.9674,168.74,168.7,5.76]
[1729886283988,2.9674,168.74,168.7,8.728]
[1729886284496,2.9675,168.74,168.7,5.76]
[1729886284894,12.86063615,168.77,168.7,5.76]
[1729886285195,2.9678,168.72,168.7,5.76]
[1729886287493,2.9676,168.73,168.7,5.76]
[1729886289493,2.9677,168.73,168.7,5.76]
[1729886289790,12.86063615,168.77,168.7,5.76]
[1729886290187,2.968,168.73,168.7,5.76]
[1729886290386,12.86063615,168.77,168.7,5.76]
[1729886291298,12.86063615,168.73,168.67,1.2162]
[1729886291492,2.969,168.67,168.62,12.86063615]
[1729886291695,2.969,168.67,168.63,5.74]
[1729886291895,2.969,168.67,168.63,8.7095]
[1729886292093,2.969,168.67,168.63,5.74]
[1729886292500,12.86063615,168.75,168.64,12.86063615]
[1729886292799,12.86063615,168.75,168.66,12.86063615]
[1729886292996,2.9684,168.71,168.67,2.9689]
[1729886293199,2.9684,168.71,168.68,5.74]
[1729886293504,12.86063615,168.73,168.68,5.74]
[1729886293699,2.9686,168.69,168.68,5.74]
[1729886294302,2.9698,168.63,168.59,2.9702]
[1729886295197,2.9699,168.62,168.59,2.9702]
[1729886296004,2.9697,168.63,168.6,2.97]
[1729886296892,2.9697,168.63,168.58,2.4902]
[1729886297098,2.9697,168.63,168.59,8.7103]
[1729886298811,12.86063615,168.7,168.61,12.86063615]
[1729886299504,12.86063615,168.7,168.59,18.60063615]
[1729886299906,2.969,168.67,168.61,2.9699]
[1729886300106,12.86063615,168.7,168.61,2.9699]
[1729886300507,2.9694,168.65,168.61,2.9699]
[1729886303708,2.9695,168.64,168.61,2.9699]
[1729886303903,12.86063615,168.7,168.59,18.60063615]
[1729886304102,12.86063615,168.7,168.62,2.9698]
[1729886304810,2.95895027,168.73,168.64,2.9694]
[1729886304811,15.81958642,168.73,168.64,2.9694]
[1729886305010,2.95895027,168.73,168.65,7.0375]
[1729886305205,12.86063615,168.75,168.65,7.0375]
[1729886306098,2.9687,168.69,168.65,7.0375]
[1729886307108,2.9691,168.67,168.65,7.0375]
[1729886307307,12.86063615,168.7,168.65,5.74]
[1729886307711,5.74,168.77,168.65,5.74]
[1729886308012,12.86063615,168.72,168.65,5.74]
[1729886308310,2.969,168.67,168.65,5.74]
[1729886309403,12.86063615,168.7,168.65,5.74]
[1729886309604,2.9691,168.66,168.65,5.74]
[1729886310210,12.86063615,168.68,168.59,14.08903615]
[1729886310408,2.9695,168.64,168.6,5.74]
[1729886310916,12.86063615,168.68,168.6,5.74]
[1729886311209,2.9697,168.63,168.6,5.74]
[1729886311412,12.86063615,168.66,168.59,1.2284]
[1729886311606,2.9703,168.6,168.57,5.74]
[1729886312128,12.86063615,168.64,168.57,5.74]
[1729886312414,2.9698,168.62,168.57,8.7107]
[1729886312613,12.86063615,168.64,168.57,8.7107]
[1729886312804,2.97,168.62,168.57,8.7107]
[1729886313004,12.86063615,168.68,168.6,2.97]
[1729886313202,12.86063615,168.7,168.6,12.86063615]
[1729886313404,2.9692,168.66,168.6,12.86063615]
[1729886313806,2.9692,168.66,168.61,2.9699]
[1729886314009,12.86063615,168.7,168.6,12.86063615]
[1729886314207,2.9692,168.66,168.6,12.86063615]
[1729886314408,2.9692,168.66,168.61,2.9699]
[1729886315312,12.86063615,168.68,168.58,2.5767]
[1729886315813,2.9693,168.65,168.6,2.9701]
[1729886317513,2.9693,168.65,168.61,2.97]
[1729886318516,2.9691,168.66,168.61,2.97]
[1729886318816,15.77518639,168.68,168.61,2.97]
[1729886319412,15.77518639,168.68,168.59,12.86063615]
[1729886319610,2.9695,168.64,168.6,2.9701]
[1729886321819,2.9692,168.66,168.61,2.9699]
[1729886322015,12.86063615,168.7,168.62,5.72]
[1729886323312,2.9688,168.68,168.62,5.72]
[1729886324509,2.9688,168.68,168.62,8.6897]
[1729886324711,12.86063615,168.68,168.62,5.72]
[1729886325621,2.9694,168.65,168.62,5.72]
[1729886326011,2.94230351,168.71,168.62,5.72]
[1729886326219,2.9695,168.64,168.62,5.72]
[1729886326518,12.86063615,168.64,168.58,1.2598]
[1729886326823,2.9702,168.6,168.57,5.72]
[1729886329317,2.9702,168.6,168.57,8.6907]
[1729886329821,12.86063615,168.64,168.57,5.72]
[1729886330623,2.9702,168.6,168.57,8.6907]
[1729886331421,2.9702,168.6,168.57,5.72]
[1729886331624,1.0847,168.66,168.57,5.72]
[1729886331824,12.86063615,168.65,168.57,5.72]
[1729886332017,2.9701,168.61,168.57,8.6906]
[1729886332520,2.9696,168.64,168.57,18.58063615]
[1729886332719,12.86063615,168.65,168.57,18.58063615]
[1729886333126,12.86063615,168.65,168.58,1.48546771]
[1729886333317,12.86063615,168.65,168.59,1.48546771]
[1729886333518,12.86063615,168.65,168.57,18.58063615]
[1729886333723,2.9696,168.63,168.6,2.97]
[1729886334220,12.86063615,168.69,168.62,2.9697]
[1729886334422,5.72,168.74,168.62,5.72]
[1729886334618,2.9692,168.66,168.62,5.72]
[1729886335425,2.9692,168.66,168.62,8.6898]
[1729886336622,12.86063615,168.68,168.62,5.72]
[1729886336823,3.04193369,168.7,168.62,5.72]
[1729886336824,2.9696,168.63,168.62,5.72]
[1729886337713,2.9696,168.63,168.58,1.2896]
[1729886337919,3.04193369,168.7,168.57,5.72]
[1729886337920,12.86063615,168.62,168.57,5.72]
[1729886338320,12.86063615,168.62,168.56,5.72]
[1729886338520,12.86063615,168.62,168.57,1.48558489]
[1729886338727,2.9703,168.59,168.56,8.6908]
[1729886339622,2.9703,168.59,168.57,1.48558196]
[1729886339820,2.9703,168.59,168.56,8.6908]
[1729886340025,2.9705,168.58,168.57,1.48558196]
[1729886340227,12.86063615,168.6,168.56,5.72]
[1729886340727,2.9706,168.58,168.56,5.72]
[1729886340917,2.9706,168.58,168.53,1.3066]
[1729886340918,12.86063615,168.58,168.53,1.3066]
[1729886341125,12.86063615,168.66,168.5,7.0219]
[1729886341126,2.971,168.55,168.5,7.0219]
[1729886341324,12.86063615,168.56,168.51,1.48603946]
[1729886341522,12.86063615,168.56,168.52,1.48601279]
[1729886341721,12.86063615,168.56,168.5,7.0219]
[1729886341917,12.86063615,168.56,168.51,1.48598875]
[1729886342122,12.86063615,168.56,168.5,7.0219]
[1729886342430,2.9712,168.54,168.51,1.48607542]
[1729886342730,2.9712,168.54,168.5,7.0219]
[1729886342923,2.9712,168.54,168.51,1.4860752]
[1729886343228,2.9711,168.55,168.5,7.0219]
[1729886343729,2.9707,168.57,168.52,2.9715]
[1729886344430,12.86063615,168.59,168.51,2.4697]
[1729886344633,2.971,168.55,168.51,2.4697]
[1729886344831,12.86063615,168.56,168.51,2.4697]
[1729886345130,12.86063615,168.54,168.5,5.72]
[1729886345726,2.9714,168.53,168.5,5.72]
[1729886345925,12.86063615,168.52,168.48,64.08]
[1729886346122,5.72,168.61,168.46,5.72]
[1729886346337,12.86063615,168.56,168.46,5.72]
[1729886346530,1.0856,168.6,168.49,12.86063615]
[1729886346830,1.0856,168.6,168.5,2.574]
[1729886346831,12.86063615,168.6,168.5,2.574]
[1729886347024,12.86063615,168.6,168.53,2.9713]
[1729886347025,2.9706,168.58,168.53,2.9713]
[1729886347334,12.86063615,168.6,168.51,5.72]
[1729886348226,12.86063615,168.6,168.51,8.6917]
[1729886348629,12.86063615,168.6,168.51,5.72]
[1729886349526,2.90940207,168.61,168.51,8.6917]
[1729886349527,15.83143615,168.57,168.51,8.6917]
[1729886349727,12.86063615,168.55,168.51,5.72]
[1729886350129,12.86063615,168.55,168.5,7.0278]
[1729886350331,2.9713,168.54,168.5,7.0278]
[1729886350535,12.86063615,168.55,168.5,7.0278]
[1729886350733,12.86063615,168.55,168.47,1.48609994]
[1729886350929,12.86063615,168.53,168.48,5.72]
[1729886351537,2.9716,168.52,168.48,5.72]
[1729886351832,12.86063615,168.53,168.48,5.72]
[1729886352235,12.86063615,168.53,168.48,8.6922]
[1729886352932,12.86063615,168.54,168.48,5.72]
[1729886353338,2.9716,168.52,168.48,5.72]
[1729886353631,2.9716,168.52,168.48,8.6922]
[1729886354132,12.86063615,168.52,168.46,1.48619455]
[1729886354333,12.86063615,168.52,168.47,5.72]
[1729886354634,12.86063615,168.5,168.46,5.72]
[1729886355331,15.84289777,168.5,168.46,5.72]
[1729886355838,12.86063615,168.52,168.47,2.9724]
[1729886356030,12.86063615,168.52,168.46,5.72]
[1729886356231,2.9713,168.54,168.46,5.72]
[1729886356431,12.86063615,168.55,168.46,5.72]
[1729886356737,2.9715,168.53,168.46,5.72]
[1729886357234,12.86063615,168.55,168.5,2.9719]
[1729886357535,5.72,168.59,168.46,5.72]
[1729886357733,12.86063615,168.54,168.49,2.9721]
[1729886358730,12.86063615,168.54,168.46,5.72]
[1729886359036,5.72,168.59,168.46,5.72]
[1729886359232,12.86063615,168.55,168.46,5.72]
[1729886359536,2.9717,168.52,168.47,2.9723]
[1729886360330,2.9717,168.52,168.46,5.72]
[1729886360531,2.9706,168.58,168.46,18.58063615]
[1729886360735,15.87684438,168.6,168.48,12.86063615]
[1729886360939,15.87684438,168.6,168.53,2.9714]
[1729886360940,12.86063615,168.58,168.53,2.9714]
[1729886361137,12.86063615,168.58,168.52,5.72]
[1729886361638,15.78078049,168.6,168.52,5.72]
[1729886361832,12.86063615,168.6,168.52,5.72]
[1729886362035,15.86073966,168.6,168.52,5.72]
[1729886362339,2.9707,168.58,168.54,2.9712]
[1729886363632,2.9707,168.58,168.41,5.947]
[1729886363633,12.86063615,168.55,168.37,64.14]
[1729886363836,12.86063615,168.52,168.42,2.6185]
[1729886364036,12.86063615,168.52,168.43,1.48615583]
[1729886364235,12.86063615,168.52,168.44,7.20615583]
[1729886364436,2.9719,168.51,168.47,2.9723]
[1729886364632,2.9719,168.51,168.45,1.48615583]
[1729886364836,12.86063615,168.52,168.46,1.48615583]
[1729886365040,12.86063615,168.52,168.45,1.48615583]
[1729886366343,2.9719,168.5,168.46,2.9725]
[1729886366843,2.9722,168.49,168.45,2.9727]
[1729886367637,12.86063615,168.46,168.43,1.48632329]
[1729886367840,12.86063615,168.48,168.39,8.147]
[1729886368036,15.83303615,168.48,168.43,2.9731]
[1729886368241,12.86063615,168.48,168.43,2.9731]
[1729886369246,2.9726,168.47,168.43,2.9731]
[1729886369541,12.86063615,168.48,168.4,7.20661786]
[1729886369742,12.86063615,168.48,168.41,2.9735]
[1729886369950,2.9726,168.46,168.4,7.20661786]
[1729886370351,12.86063615,168.48,168.43,2.9731]
[1729886370543,12.86063615,168.44,168.28,64.16]
[1729886370744,12.86063615,168.48,168.28,64.16]
[1729886370745,12.86063615,168.41,168.33,2.4815]
[1729886370945,12.86063615,168.41,168.35,2.9746]
[1729886371144,1.0865,168.5,168.35,7.20669854]
[1729886371345,12.86063615,168.46,168.35,18.58063615]
[1729886371546,12.86063615,168.46,168.36,2.70329854]
[1729886372042,12.86063615,168.46,168.37,2.974]
[1729886372351,12.86063615,168.46,168.36,2.70329854]
[1729886372547,12.86063615,168.49,168.36,2.70329854]
[1729886372548,12.86063615,168.41,168.36,1.48669854]
[1729886372847,12.86063615,168.41,168.35,5.72]
[1729886373049,2.9739,168.39,168.35,8.6945]
[1729886373248,12.86063615,168.41,168.35,5.72]
[1729886373648,12.86063615,168.41,168.33,2.4815]
[1729886373962,12.86063615,168.41,168.34,5.7]
[1729886374246,12.86063615,168.41,168.31,1.4870052]
[1729886374457,12.86063615,168.41,168.02,14.9016]
[1729886374458,12.86063615,168.34,168.24,11.0231052]
[1729886374643,12.86063615,168.34,168.25,1.4870052]
[1729886374842,12.86063615,168.34,168.24,11.0231052]
[1729886375044,2.9752,168.32,168.27,2.9758]
[1729886375448,2.9751,168.32,168.27,2.9758]
[1729886375649,12.86063615,168.31,168.25,2.9762]
[1729886375848,12.86063615,168.31,168.26,5.7]
[1729886376243,2.95190257,168.36,168.26,5.7]
[1729886376244,20.57941303,168.32,168.26,5.7]
[1729886376443,2.9755,168.3,168.26,5.7]
[1729886377045,20.57941303,168.29,168.19,1.4870052]
[1729886377249,20.57941303,168.29,168.19,1.3058]
[1729886377447,5.7,168.33,168.19,1.3058]
[1729886377647,20.57941303,168.31,168.19,1.3058]
[1729886378150,20.57941303,168.31,168.2,5.7]
[1729886378354,23.49601304,168.33,168.2,5.7]
[1729886378648,20.57941303,168.36,168.22,20.57941303]
[1729886379049,2.9747,168.35,168.29,2.9756]
[1729886379350,20.57941303,168.39,168.29,5.7]
[1729886379549,20.57941303,168.33,168.03,20.57941303]
[1729886379755,20.57941303,168.33,168.22,1.2955]
[1729886380254,23.5570547,168.33,168.22,1.2955]
[1729886380456,2.9759,168.28,168.22,4.2723]
[1729886380754,20.57941303,168.3,168.22,1.2955]
[1729886381748,2.9764,168.25,168.22,6.9955]
[1729886382143,20.57941303,168.27,168.22,5.7]
[1729886382655,20.57941303,168.24,168.07,20.57941303]
[1729886382960,20.57941303,168.27,168.08,7.18889215]
[1729886382961,20.57941303,168.22,168.08,7.18889215]
[1729886383152,20.57941303,168.21,168.08,7.18889215]
[1729886383350,20.57941303,168.18,168.09,5.7]
[1729886383847,2.9783,168.15,168.09,5.7]
[1729886384054,20.57941303,168.21,168.09,5.7]
[1729886384452,20.57941303,168.21,168.1,2.9789]
[1729886384850,2.9777,168.18,168.11,2.9788]
[1729886385048,20.57941303,168.25,168.12,20.57941303]
[1729886385255,20.57941303,168.25,168.13,3.9099]
[1729886385457,20.57941303,168.19,168.06,5.7]
[1729886385659,20.57941303,168.19,168.1,1.2967]
[1729886385954,2.9777,168.18,168.12,2.9786]
[1729886386156,2.9777,168.18,168.13,6.9992]
[1729886386457,20.57941303,168.22,168.13,6.9992]
[1729886386658,6.7893,168.32,168.14,20.57941303]
[1729886386851,20.57941303,168.29,168.14,20.57941303]
[1729886387153,6.7893,168.32,168.15,1.2668]
[1729886387359,20.57941303,168.28,168.15,1.2668]
[1729886387661,20.57941303,168.25,168.15,1.2668]
[1729886387959,1.0893,168.32,168.16,20.57941303]
[1729886388259,20.57941303,168.31,168.16,20.57941303]
[1729886388553,2.9764,168.25,168.19,2.9772]
[1729886388756,20.57941303,168.28,168.14,20.57941303]
[1729886388959,20.57941303,168.24,168.14,1.1991]
[1729886389150,2.9776,168.18,168.14,1.1991]
[1729886390048,2.9776,168.18,168.15,5.7]
[1729886390252,20.57941303,168.21,168.14,1.1991]
[1729886390556,20.57941303,168.29,168.14,5.7]
[1729886390557,20.57941303,168.2,168.14,5.7]
[1729886390758,2.9781,168.16,168.14,5.7]
[1729886390949,20.57941303,168.2,168.14,5.7]
[1729886391348,2.978,168.16,168.14,5.7]
[1729886391855,20.57941303,168.19,168.14,5.7]
[1729886392053,3.00396389,168.24,167.96,64.26]
[1729886392255,345.97764167,168.33,168.07,20.57941303]
[1729886392256,2.9776,168.18,168.07,20.57941303]
[1729886392456,20.57941303,168.21,168.04,20.57941303]
[1729886392457,20.57941303,168.21,168.08,8.1767]
[1729886393151,20.57941303,168.15,168.09,5.7]
[1729886393361,2.9786,168.13,168.09,5.7]
[1729886393557,20.57941303,168.15,168.09,5.7]
[1729886393864,20.57941303,168.15,168.1,1.2311]
[1729886394551,20.57941303,168.15,168.1,5.7]
[1729886395061,20.57941303,168.13,167.98,20.57941303]
[1729886395252,20.57941303,168.13,167.96,64.26]
[1729886395253,20.57941303,168.09,168.01,8.6806]
[1729886395653,2.9795,168.07,168.01,5.7]
[1729886395855,2.9795,168.07,168.01,8.6806]
[1729886396356,2.9797,168.06,168.01,8.6806]
[1729886396564,20.57941303,168.09,168.01,5.7]
[1729886397254,1.0917,168.14,168.01,5.7]
[1729886397457,20.57941303,168.11,168.01,5.7]
[1729886397656,20.57941303,168.08,167.98,1.2632]
[1729886397856,2.98,168.05,168.0,2.9807]
[1729886398062,2.98,168.05,167.98,1.2632]
[1729886398264,20.57941303,168.12,168.01,5.72]
[1729886398560,2.9799,168.06,168.01,5.72]
[1729886398760,20.57941303,168.07,167.96,5.72]
[1729886399055,20.57941303,168.07,167.98,1.2033]
[1729886400158,2.9806,168.01,167.98,1.2033]
[1729886400460,2.9806,168.01,167.99,5.72]
[1729886401662,2.9808,168.0,167.99,5.72]
[1729886401964,20.57941303,168.06,167.99,5.72]
[1729886402161,20.57941303,168.11,167.99,5.72]
[1729886402459,20.57941303,168.17,168.03,20.57941303]
[1729886402653,20.57941303,168.14,168.03,5.72]
[1729886403056,20.57941303,168.14,168.04,1.239]
[1729886403254,1.0945,168.22,168.04,1.239]
[1729886403255,20.57941303,168.17,168.04,1.239]
[1729886403553,20.57941303,168.17,168.05,1.2827]
[1729886403764,20.57941303,168.17,168.07,2.9794]
[1729886403955,20.57941303,168.17,168.08,5.7]
[1729886404357,2.9789,168.11,168.08,5.7]
[1729886404658,20.57941303,168.17,168.08,5.7]
[1729886404859,2.9782,168.15,168.08,5.7]
[1729886405059,20.57941303,168.11,168.09,5.7]
[1729886405260,20.57941303,168.11,168.04,1.239]
[1729886405455,20.57941303,168.11,168.05,5.7]
[1729886405859,20.57941303,168.11,168.06,5.7]
[1729886406057,2.9795,168.08,168.06,5.7]
[1729886406465,20.57941303,168.14,168.06,5.7]
[1729886406660,2.9799,168.05,168.04,1.239]
[1729886407168,2.9793,168.09,168.04,1.239]
[1729886407465,20.57941303,168.11,168.04,1.239]
[1729886408369,2.9792,168.09,168.04,4.219]
[1729886408765,20.57941303,168.14,168.04,1.239]
[1729886408972,2.9778,168.17,168.06,2.9795]
[1729886409171,1.0945,168.22,168.07,5.7]
[1729886409473,1.0945,168.22,168.1,2.9789]
[1729886409474,2.9781,168.15,168.1,2.9789]
[1729886409665,20.57941303,168.21,168.07,5.7]
[1729886410165,2.9782,168.15,168.09,2.9791]
[1729886410367,20.57941303,168.21,168.1,1.2263]
[1729886410569,20.57941303,168.21,168.1,2.4575]
[1729886411163,20.57941303,168.24,168.1,2.4575]
[1729886411474,20.57941303,168.18,168.11,5.7]
[1729886411663,1.0933,168.28,168.11,5.7]
[1729886411664,20.57941303,168.21,168.12,1.2261]
[1729886411863,20.57941303,168.24,168.12,1.2261]
[1729886412075,2.977,168.22,168.16,2.9779]
[1729886412275,2.977,168.22,168.17,5.7]
[1729886412662,20.57941303,168.24,168.17,5.7]
[1729886412663,2.9771,168.21,168.17,5.7]
[1729886413380,20.57941303,168.21,168.17,5.7]
[1729886413783,20.57941303,168.21,168.12,1.2261]
[1729886414090,20.57941303,168.18,168.13,5.7]
[1729886414285,20.57941303,168.16,167.93,64.32]
[1729886414483,2.9793,168.08,168.03,2.9802]
[1729886414786,20.57941303,168.13,168.04,5.7]
[1729886414985,20.57941303,168.13,168.05,5.7]
[1729886415488,20.57941303,168.09,167.97,2.4992]
[1729886415674,20.57941303,168.09,167.98,5.7]
[1729886415873,20.57941303,168.12,167.98,5.7]
[1729886416274,20.57941303,168.18,168.02,20.57941303]
[1729886416477,2.9784,168.14,168.08,2.9792]
[1729886416682,20.57941303,168.21,168.09,6.9966]
[1729886416879,20.57941303,168.24,168.1,26.27941303]
[1729886417182,1.0923,168.28,168.12,20.57941303]
[1729886417390,1.0923,168.28,168.13,1.2602]
[1729886417580,2.9768,168.23,168.17,2.9776]
[1729886417779,1.0923,168.28,168.18,6.928]
[1729886417985,20.57941303,168.29,168.19,5.7]
[1729886418382,33.44519971,168.27,168.19,5.7]
[1729886418993,2.9767,168.23,168.19,5.7]
[1729886419689,2.976,168.28,168.21,2.9769]
[1729886419883,33.44519971,168.33,168.19,5.7]
[1729886420082,33.44519971,168.33,168.2,33.44519971]
[1729886420285,1.0923,168.36,168.2,33.44519971]
[1729886420286,33.44519971,168.35,168.2,33.44519971]
[1729886420891,33.44519971,168.35,168.25,2.9763]
[1729886420892,2.9753,168.31,168.25,2.9763]
[1729886421087,2.9753,168.31,168.26,5.7]
[1729886421291,33.44519971,168.35,168.26,7.0235]
[1729886421488,2.9756,168.3,168.26,7.0235]
[1729886421688,33.44519971,168.35,168.26,7.0235]
[1729886421887,2.976,168.28,168.26,7.0235]
[1729886422091,33.44519971,168.32,168.26,7.0235]
[1729886422290,33.44519971,168.32,168.26,5.7]
[1729886422893,33.44519971,168.32,168.21,4.3004]
[1729886423088,33.44519971,168.32,168.22,5.7]
[1729886424185,33.44519971,168.3,168.22,5.7]
[1729886424387,2.9769,168.22,168.21,1.3235]
[1729886424589,33.44519971,168.3,168.21,7.0235]
[1729886424996,2.9767,168.23,168.21,7.0235]
[1729886425496,2.9769,168.22,168.21,5.7]
[1729886425890,33.44519971,168.27,168.21,5.7]
[1729886427292,2.9769,168.22,168.21,5.7]